[Event "Titled Tuesday Blitz October 19 2021"]
[White "Jary, Sergey"]
[Black "Durarbayli, Vasif"]
[WhiteFideId "14110350"]
[BlackFideId "13402935"]
[WhiteElo "2260"]
[BlackElo "2522"]
[Result "0-1"]
[Round "01"]
[TimeControl "180+1"]
[Date "2021.10.19"]
[WhiteClock "0:00:51"]
[BlackClock "0:00:21"]

1. e4 {[%clk 0:02:54]}  c5 {[%clk 0:02:57]} 2. Nf3 {[%clk 0:02:53]}  d6 {[%clk 0:02:57]} 3. d4 {[%clk 0:02:54]}  cxd4 {[%clk 0:02:58]} 4. Nxd4 {[%clk 0:02:54]}  Nf6 {[%clk 0:02:58]} 5. f3 {[%clk 0:02:55]}  Nc6 {[%clk 0:02:54]} 6. c4 {[%clk 0:02:54]}  e6 {[%clk 0:02:54]} 7. Nc3 {[%clk 0:02:54]}  Be7 {[%clk 0:02:55]} 8. Be3 {[%clk 0:02:55]}  O-O {[%clk 0:02:55]} 9. Qd2 {[%clk 0:02:55]}  d5 {[%clk 0:02:54]} 10. Nxc6 {[%clk 0:02:51]}  bxc6 {[%clk 0:02:53]} 11. e5 {[%clk 0:02:51]}  Nd7 {[%clk 0:02:44]} 12. f4 {[%clk 0:02:51]}  Qa5 {[%clk 0:02:25]} 13. Be2 {[%clk 0:02:34]}  Ba6 {[%clk 0:02:16]} 14. O-O {[%clk 0:02:29]}  Bc5 {[%clk 0:02:15]} 15. Rfd1 {[%clk 0:02:25]}  Rab8 {[%clk 0:02:09]} 16. cxd5 {[%clk 0:02:19]}  cxd5 {[%clk 0:02:03]} 17. Bxa6 {[%clk 0:02:13]}  Qxa6 {[%clk 0:01:54]} 18. b3 {[%clk 0:02:13]}  Rbc8 {[%clk 0:01:26]} 19. Rac1 {[%clk 0:02:10]}  Qb6 {[%clk 0:01:23]} 20. Bxc5 {[%clk 0:02:07]}  Nxc5 {[%clk 0:01:22]} 21. Qd4 {[%clk 0:02:04]}  a5 {[%clk 0:01:02]} 22. Ne2 {[%clk 0:01:58]}  Rc6 {[%clk 0:00:57]} 23. Rc2 {[%clk 0:01:58]}  Rfc8 {[%clk 0:00:57]} 24. Rdc1 {[%clk 0:01:58]}  Kf8 {[%clk 0:00:52]} 25. Kf1 {[%clk 0:01:56]}  Ke8 {[%clk 0:00:52]} 26. a3 {[%clk 0:01:49]}  Kd7 {[%clk 0:00:49]} 27. b4 {[%clk 0:01:49]}  axb4 {[%clk 0:00:50]} 28. axb4 {[%clk 0:01:43]}  Na4 {[%clk 0:00:50]} 29. Qxb6 {[%clk 0:01:33]}  Nxb6 {[%clk 0:00:49]} 30. Rxc6 {[%clk 0:01:30]}  Rxc6 {[%clk 0:00:50]} 31. Rxc6 {[%clk 0:01:29]}  Kxc6 {[%clk 0:00:51]} 32. Nd4+ {[%clk 0:01:30]}  Kd7 {[%clk 0:00:49]} 33. Ke2 {[%clk 0:01:30]}  f6 {[%clk 0:00:49]} 34. Kd3 {[%clk 0:01:28]}  Nc4 {[%clk 0:00:45]} 35. Nf3 {[%clk 0:01:24]}  Kc6 {[%clk 0:00:44]} 36. Nd4+ {[%clk 0:01:23]}  Kd7 {[%clk 0:00:45]} 37. Nf3 {[%clk 0:01:23]}  fxe5 {[%clk 0:00:38]} 38. fxe5 {[%clk 0:01:23]}  h6 {[%clk 0:00:38]} 39. Kd4 {[%clk 0:01:22]}  Kc6 {[%clk 0:00:38]} 40. Kc3 {[%clk 0:01:19]}  Ne3 {[%clk 0:00:37]} 41. b5+ {[%clk 0:01:10]}  Kc5 {[%clk 0:00:23]} 42. g3 {[%clk 0:01:08]}  Nf5 {[%clk 0:00:20]} 43. g4 {[%clk 0:01:04]}  Ne3 {[%clk 0:00:20]} 44. h3 {[%clk 0:00:56]}  Nd1+ {[%clk 0:00:20]} 45. Kd3 {[%clk 0:00:51]}  Nf2+ {[%clk 0:00:21]} 46. Kc3 {[%clk 0:00:51]}  Nxh3 {[%clk 0:00:21]} 47. Nd4 {[%clk 0:00:51]}  Ng5 {[%clk 0:00:21]} 48. Nxe6+ {[%clk 0:00:51]}  Nxe6 {[%clk 0:00:21]} 0-1


[Site "https://www.chess.com"]

[Event "Titled Tuesday Blitz October 19 2021"]
[White "Kollars, Dmitrij"]
[Black "Ozates, Tuna"]
[WhiteFideId "12909572"]
[BlackFideId "6354521"]
[WhiteElo "2584"]
[BlackElo "1872"]
[Result "1-0"]
[Round "01"]
[TimeControl "180+1"]
[Date "2021.10.19"]
[WhiteClock "0:01:21"]
[BlackClock "0:00:56"]

1. Nf3 {[%clk 0:03:00]}  c5 {[%clk 0:02:59]} 2. c3 {[%clk 0:02:55]}  d5 {[%clk 0:02:58]} 3. d4 {[%clk 0:02:55]}  cxd4 {[%clk 0:02:57]} 4. cxd4 {[%clk 0:02:56]}  Nc6 {[%clk 0:02:58]} 5. Nc3 {[%clk 0:02:55]}  Nf6 {[%clk 0:02:58]} 6. Bg5 {[%clk 0:02:55]}  Ne4 {[%clk 0:02:57]} 7. Bf4 {[%clk 0:02:51]}  Nxc3 {[%clk 0:02:55]} 8. bxc3 {[%clk 0:02:52]}  Qa5 {[%clk 0:02:54]} 9. Qb3 {[%clk 0:02:47]}  e6 {[%clk 0:02:54]} 10. e3 {[%clk 0:02:47]}  Be7 {[%clk 0:02:54]} 11. Bd3 {[%clk 0:02:46]}  O-O {[%clk 0:02:54]} 12. O-O {[%clk 0:02:46]}  b6 {[%clk 0:02:49]} 13. a4 {[%clk 0:02:18]}  Ba6 {[%clk 0:02:42]} 14. Bb5 {[%clk 0:02:15]}  Rac8 {[%clk 0:02:39]} 15. Rfc1 {[%clk 0:02:13]}  Bb7 {[%clk 0:02:04]} 16. h4 {[%clk 0:02:07]}  a6 {[%clk 0:02:02]} 17. Bd3 {[%clk 0:02:06]}  Nb8 {[%clk 0:01:44]} 18. h5 {[%clk 0:01:54]}  h6 {[%clk 0:01:40]} 19. Ne5 {[%clk 0:01:54]}  Nc6 {[%clk 0:01:35]} 20. Nd7 {[%clk 0:01:48]}  Rfe8 {[%clk 0:01:27]} 21. Nxb6 {[%clk 0:01:47]}  Nb4 {[%clk 0:01:13]} 22. Nxc8 {[%clk 0:01:43]}  Nxd3 {[%clk 0:01:13]} 23. Qxb7 {[%clk 0:01:41]}  Nxc1 {[%clk 0:01:08]} 24. Rxc1 {[%clk 0:01:30]}  Ba3 {[%clk 0:01:04]} 25. Rf1 {[%clk 0:01:24]}  Qxc3 {[%clk 0:01:04]} 26. Nd6 {[%clk 0:01:24]}  Rf8 {[%clk 0:01:02]} 27. Qxa6 {[%clk 0:01:24]}  f6 {[%clk 0:00:56]} 28. Nb5 {[%clk 0:01:21]} 1-0


[Site "https://www.chess.com"]

[Event "Titled Tuesday Blitz October 19 2021"]
[White "Le, Tuan Minh"]
[Black "Nguyen Hong Nhung"]
[WhiteFideId "12401153"]
[BlackFideId "12412201"]
[WhiteElo "2450"]
[BlackElo "1661"]
[Result "1-0"]
[Round "01"]
[TimeControl "180+1"]
[Date "2021.10.19"]
[WhiteClock "0:01:54"]
[BlackClock "0:00:47"]

1. d4 {[%clk 0:02:57]}  f5 {[%clk 0:02:59]} 2. e4 {[%clk 0:02:57]}  fxe4 {[%clk 0:02:59]} 3. Nc3 {[%clk 0:02:57]}  Nf6 {[%clk 0:02:59]} 4. f3 {[%clk 0:02:57]}  e6 {[%clk 0:02:52]} 5. fxe4 {[%clk 0:02:56]}  Bb4 {[%clk 0:02:50]} 6. Bd3 {[%clk 0:02:54]}  O-O {[%clk 0:02:47]} 7. Nf3 {[%clk 0:02:54]}  d5 {[%clk 0:02:35]} 8. exd5 {[%clk 0:02:49]}  exd5 {[%clk 0:02:23]} 9. O-O {[%clk 0:02:46]}  Bg4 {[%clk 0:02:19]} 10. Bg5 {[%clk 0:02:42]}  Qd7 {[%clk 0:02:05]} 11. Qe1 {[%clk 0:02:19]}  Bxf3 {[%clk 0:01:45]} 12. Rxf3 {[%clk 0:02:20]}  Nc6 {[%clk 0:01:24]} 13. Qh4 {[%clk 0:02:19]}  Ne4 {[%clk 0:01:17]} 14. Nxe4 {[%clk 0:01:54]}  dxe4 {[%clk 0:01:11]} 15. Bxe4 {[%clk 0:01:55]}  h6 {[%clk 0:00:47]} 16. Bxh6 {[%clk 0:01:54]} 1-0


[Site "https://www.chess.com"]

[Event "Titled Tuesday Blitz October 19 2021"]
[White "Maksimovic, Bojan"]
[Black "Krasilnikov, Evgeni"]
[WhiteFideId "14408120"]
[BlackFideId "4139739"]
[WhiteElo "2439"]
[BlackElo "2295"]
[Result "1/2-1/2"]
[Round "01"]
[TimeControl "180+1"]
[Date "2021.10.19"]
[WhiteClock "0:00:10"]
[BlackClock "0:00:07"]

1. e4 {[%clk 0:02:55]}  c6 {[%clk 0:02:59]} 2. Bc4 {[%clk 0:02:53]}  d5 {[%clk 0:02:59]} 3. Bb3 {[%clk 0:02:54]}  dxe4 {[%clk 0:02:57]} 4. Qh5 {[%clk 0:02:54]}  e6 {[%clk 0:02:53]} 5. Nc3 {[%clk 0:02:53]}  Nf6 {[%clk 0:02:53]} 6. Qh4 {[%clk 0:02:54]}  Nbd7 {[%clk 0:02:41]} 7. Nxe4 {[%clk 0:02:52]}  Nxe4 {[%clk 0:02:41]} 8. Qxe4 {[%clk 0:02:53]}  Nf6 {[%clk 0:02:41]} 9. Qe2 {[%clk 0:02:53]}  c5 {[%clk 0:02:30]} 10. Nf3 {[%clk 0:02:50]}  Be7 {[%clk 0:02:30]} 11. O-O {[%clk 0:02:49]}  O-O {[%clk 0:02:29]} 12. d4 {[%clk 0:02:49]}  cxd4 {[%clk 0:02:28]} 13. Rd1 {[%clk 0:02:48]}  Qc7 {[%clk 0:02:23]} 14. Nxd4 {[%clk 0:02:47]}  a6 {[%clk 0:02:23]} 15. g3 {[%clk 0:02:47]}  e5 {[%clk 0:02:17]} 16. Nf3 {[%clk 0:02:45]}  Bg4 {[%clk 0:02:16]} 17. h3 {[%clk 0:02:42]}  Bxh3 {[%clk 0:02:04]} 18. Qxe5 {[%clk 0:02:41]}  Qc6 {[%clk 0:01:58]} 19. Nh4 {[%clk 0:02:11]}  Rfe8 {[%clk 0:01:44]} 20. Be3 {[%clk 0:01:58]}  Ng4 {[%clk 0:01:19]} 21. Qd5 {[%clk 0:01:10]}  Nxe3 {[%clk 0:01:17]} 22. Qxc6 {[%clk 0:01:02]}  bxc6 {[%clk 0:01:18]} 23. fxe3 {[%clk 0:01:03]}  Bf6 {[%clk 0:01:02]} 24. c3 {[%clk 0:00:45]}  Rxe3 {[%clk 0:01:00]} 25. Kf2 {[%clk 0:00:45]}  Rae8 {[%clk 0:00:59]} 26. Re1 {[%clk 0:00:43]}  Bg5 {[%clk 0:00:50]} 27. Nf3 {[%clk 0:00:34]}  Bh6 {[%clk 0:00:44]} 28. Rad1 {[%clk 0:00:23]}  Bg4 {[%clk 0:00:41]} 29. Rxe3 {[%clk 0:00:20]}  Bxe3+ {[%clk 0:00:38]} 30. Kg2 {[%clk 0:00:21]}  Bc5 {[%clk 0:00:29]} 31. Rd3 {[%clk 0:00:20]}  h6 {[%clk 0:00:25]} 32. Nd4 {[%clk 0:00:15]}  Re1 {[%clk 0:00:24]} 33. Kf2 {[%clk 0:00:12]}  Rb1 {[%clk 0:00:23]} 34. Rd2 {[%clk 0:00:13]}  a5 {[%clk 0:00:21]} 35. Bc2 {[%clk 0:00:13]}  Rc1 {[%clk 0:00:18]} 36. Ke3 {[%clk 0:00:13]}  Bb6 {[%clk 0:00:16]} 37. Kf4 {[%clk 0:00:13]}  Bh5 {[%clk 0:00:12]} 38. Nxc6 {[%clk 0:00:14]}  Rf1+ {[%clk 0:00:10]} 39. Ke5 {[%clk 0:00:12]}  Bc7+ {[%clk 0:00:08]} 40. Kd5 {[%clk 0:00:12]}  Bxg3 {[%clk 0:00:08]} 41. Nd4 {[%clk 0:00:11]}  g5 {[%clk 0:00:06]} 42. Bb3 {[%clk 0:00:11]}  Kg7 {[%clk 0:00:05]} 43. Ke4 {[%clk 0:00:10]}  Bf4 {[%clk 0:00:04]} 44. Nf5+ {[%clk 0:00:09]}  Kf6 {[%clk 0:00:03]} 45. Rd8 {[%clk 0:00:03]}  Bg6 {[%clk 0:00:03]} 46. Rd6+ {[%clk 0:00:02]}  Bxd6 {[%clk 0:00:02]} 47. Bc4 {[%clk 0:00:02]}  Bxf5+ {[%clk 0:00:02]} 48. Kd4 {[%clk 0:00:03]}  g4 {[%clk 0:00:02]} 49. Kd5 {[%clk 0:00:03]}  g3 {[%clk 0:00:03]} 50. Bxf1 {[%clk 0:00:04]}  h5 {[%clk 0:00:02]} 51. Kxd6 {[%clk 0:00:04]}  h4 {[%clk 0:00:03]} 52. Kd5 {[%clk 0:00:04]}  h3 {[%clk 0:00:03]} 53. Bxh3 {[%clk 0:00:04]}  Bxh3 {[%clk 0:00:02]} 54. Ke4 {[%clk 0:00:05]}  g2 {[%clk 0:00:03]} 55. Kf3 {[%clk 0:00:06]}  g1=Q {[%clk 0:00:03]} 56. Ke4 {[%clk 0:00:07]}  Qg4+ {[%clk 0:00:03]} 57. Kd5 {[%clk 0:00:07]}  Ke7 {[%clk 0:00:03]} 58. Kc5 {[%clk 0:00:07]}  Qf5+ {[%clk 0:00:04]} 59. Kc4 {[%clk 0:00:07]}  Qe5 {[%clk 0:00:04]} 60. a4 {[%clk 0:00:07]}  f5 {[%clk 0:00:05]} 61. b4 {[%clk 0:00:07]}  f4 {[%clk 0:00:05]} 62. bxa5 {[%clk 0:00:08]}  f3 {[%clk 0:00:06]} 63. a6 {[%clk 0:00:08]}  Bf1+ {[%clk 0:00:06]} 64. Kb4 {[%clk 0:00:08]}  Bxa6 {[%clk 0:00:07]} 65. c4 {[%clk 0:00:08]}  f2 {[%clk 0:00:08]} 66. a5 {[%clk 0:00:08]}  Bxc4 {[%clk 0:00:08]} 67. Kxc4 {[%clk 0:00:09]}  Qxa5 {[%clk 0:00:08]} 68. Kd3 {[%clk 0:00:09]}  Kd6 {[%clk 0:00:09]} 69. Kd4 {[%clk 0:00:10]}  Qb4+ {[%clk 0:00:08]} 70. Ke3 {[%clk 0:00:10]}  f1=Q {[%clk 0:00:07]} 1/2-1/2


[Site "https://www.chess.com"]

[Event "Titled Tuesday Blitz October 19 2021"]
[White "Miszler, Levente"]
[Black "Lazavik, Denis"]
[WhiteFideId "763276"]
[BlackFideId "13515110"]
[WhiteElo "1966"]
[BlackElo "2436"]
[Result "0-1"]
[Round "01"]
[TimeControl "180+1"]
[Date "2021.10.19"]
[WhiteClock "0:00:11"]
[BlackClock "0:01:37"]

1. Nf3 {[%clk 0:03:00]}  d5 {[%clk 0:02:58]} 2. c4 {[%clk 0:02:50]}  e6 {[%clk 0:02:57]} 3. g3 {[%clk 0:02:50]}  Nf6 {[%clk 0:02:57]} 4. Bg2 {[%clk 0:02:50]}  dxc4 {[%clk 0:02:57]} 5. O-O {[%clk 0:02:48]}  Nbd7 {[%clk 0:02:49]} 6. Qa4 {[%clk 0:02:46]}  a6 {[%clk 0:02:48]} 7. Qxc4 {[%clk 0:02:47]}  b5 {[%clk 0:02:47]} 8. Qc2 {[%clk 0:02:47]}  Bb7 {[%clk 0:02:47]} 9. d4 {[%clk 0:02:42]}  c5 {[%clk 0:02:46]} 10. dxc5 {[%clk 0:02:06]}  Bxc5 {[%clk 0:02:43]} 11. a3 {[%clk 0:02:06]}  Rc8 {[%clk 0:02:37]} 12. Nc3 {[%clk 0:02:05]}  O-O {[%clk 0:02:37]} 13. Bf4 {[%clk 0:01:58]}  Qe7 {[%clk 0:02:06]} 14. Rfd1 {[%clk 0:01:50]}  Rfd8 {[%clk 0:02:04]} 15. Rac1 {[%clk 0:01:25]}  h6 {[%clk 0:01:55]} 16. b4 {[%clk 0:01:08]}  Bxf2+ {[%clk 0:01:50]} 17. Kxf2 {[%clk 0:01:02]}  Rxc3 {[%clk 0:01:49]} 18. Qxc3 {[%clk 0:00:41]}  Ne4+ {[%clk 0:01:48]} 19. Kg1 {[%clk 0:00:36]}  Nxc3 {[%clk 0:01:48]} 20. Rxc3 {[%clk 0:00:36]}  Nf6 {[%clk 0:01:45]} 21. Rdc1 {[%clk 0:00:32]}  Nd5 {[%clk 0:01:42]} 22. Rc5 {[%clk 0:00:18]}  Nxf4 {[%clk 0:01:40]} 23. gxf4 {[%clk 0:00:19]}  Qf6 {[%clk 0:01:41]} 24. Rc7 {[%clk 0:00:16]}  Qxf4 {[%clk 0:01:39]} 25. Rf1 {[%clk 0:00:11]}  Qxc7 {[%clk 0:01:37]} 0-1


[Site "https://www.chess.com"]

[Event "Titled Tuesday Blitz October 19 2021"]
[White "Pasti, Aron"]
[Black "Nogerbek, Kazybek"]
[WhiteFideId "785857"]
[BlackFideId "13710427"]
[WhiteElo "2080"]
[BlackElo "2436"]
[Result "0-1"]
[Round "01"]
[TimeControl "180+1"]
[Date "2021.10.19"]
[WhiteClock "0:00:46"]
[BlackClock "0:01:46"]

1. e4 {[%clk 0:03:00]}  c6 {[%clk 0:02:44]} 2. d4 {[%clk 0:03:00]}  d5 {[%clk 0:02:43]} 3. exd5 {[%clk 0:02:59]}  cxd5 {[%clk 0:02:43]} 4. c4 {[%clk 0:02:59]}  Nf6 {[%clk 0:02:44]} 5. Nc3 {[%clk 0:02:59]}  Nc6 {[%clk 0:02:44]} 6. Nf3 {[%clk 0:02:59]}  Bg4 {[%clk 0:02:43]} 7. cxd5 {[%clk 0:02:34]}  Nxd5 {[%clk 0:02:44]} 8. Be2 {[%clk 0:02:27]}  e6 {[%clk 0:02:41]} 9. O-O {[%clk 0:02:22]}  Be7 {[%clk 0:02:38]} 10. Nxd5 {[%clk 0:02:11]}  Qxd5 {[%clk 0:02:37]} 11. Be3 {[%clk 0:02:11]}  O-O {[%clk 0:02:37]} 12. h3 {[%clk 0:02:11]}  Bh5 {[%clk 0:02:37]} 13. Qb3 {[%clk 0:02:07]}  Qxb3 {[%clk 0:02:28]} 14. axb3 {[%clk 0:02:08]}  Rfd8 {[%clk 0:02:28]} 15. g4 {[%clk 0:02:06]}  Bg6 {[%clk 0:02:28]} 16. Rac1 {[%clk 0:01:49]}  Be4 {[%clk 0:02:18]} 17. Rfd1 {[%clk 0:01:46]}  Bd5 {[%clk 0:02:17]} 18. Ne5 {[%clk 0:01:35]}  Rac8 {[%clk 0:02:13]} 19. Nxc6 {[%clk 0:01:31]}  Rxc6 {[%clk 0:02:11]} 20. Bc4 {[%clk 0:01:31]}  Bf3 {[%clk 0:02:04]} 21. Re1 {[%clk 0:01:19]}  Bb4 {[%clk 0:01:59]} 22. Bb5 {[%clk 0:01:11]}  Rb6 {[%clk 0:01:54]} 23. Bg5 {[%clk 0:01:07]}  Rf8 {[%clk 0:01:48]} 24. Re3 {[%clk 0:01:01]}  Rxb5 {[%clk 0:01:48]} 25. Rxf3 {[%clk 0:01:00]}  Rxg5 {[%clk 0:01:49]} 26. Rc4 {[%clk 0:00:58]}  Bd6 {[%clk 0:01:48]} 27. Rfc3 {[%clk 0:00:56]}  Rd5 {[%clk 0:01:48]} 28. Kf1 {[%clk 0:00:53]}  g5 {[%clk 0:01:47]} 29. Ke2 {[%clk 0:00:52]}  Kg7 {[%clk 0:01:47]} 30. Ke3 {[%clk 0:00:49]}  Bf4+ {[%clk 0:01:46]} 31. Ke4 {[%clk 0:00:49]}  Rfd8 {[%clk 0:01:47]} 32. f3 {[%clk 0:00:48]}  h6 {[%clk 0:01:46]} 33. Rd3 {[%clk 0:00:47]}  f5+ {[%clk 0:01:45]} 34. gxf5 {[%clk 0:00:46]}  exf5# {[%clk 0:01:46]} 0-1


[Site "https://www.chess.com"]

[Event "Titled Tuesday Blitz October 19 2021"]
[White "Praggnanandhaa R"]
[Black "Grunberg, Mihai-Lucian"]
[WhiteFideId "25059530"]
[BlackFideId "1204149"]
[WhiteElo "2599"]
[BlackElo "2364"]
[Result "1-0"]
[Round "01"]
[TimeControl "180+1"]
[Date "2021.10.19"]
[WhiteClock "0:00:55"]
[BlackClock "0:00:36"]

1. Nf3 {[%clk 0:03:00]}  Nf6 {[%clk 0:02:58]} 2. b3 {[%clk 0:03:00]}  g6 {[%clk 0:02:58]} 3. Bb2 {[%clk 0:03:01]}  Bg7 {[%clk 0:02:59]} 4. g3 {[%clk 0:03:01]}  O-O {[%clk 0:02:59]} 5. Bg2 {[%clk 0:03:01]}  d5 {[%clk 0:03:00]} 6. c4 {[%clk 0:03:01]}  c5 {[%clk 0:02:58]} 7. cxd5 {[%clk 0:03:01]}  Nxd5 {[%clk 0:02:58]} 8. Bxg7 {[%clk 0:03:02]}  Kxg7 {[%clk 0:02:59]} 9. O-O {[%clk 0:03:02]}  Nc6 {[%clk 0:02:58]} 10. d4 {[%clk 0:03:02]}  cxd4 {[%clk 0:02:56]} 11. Nxd4 {[%clk 0:03:02]}  Nxd4 {[%clk 0:02:56]} 12. Qxd4+ {[%clk 0:03:03]}  Nf6 {[%clk 0:02:56]} 13. Qe5 {[%clk 0:03:03]}  Qb6 {[%clk 0:02:40]} 14. Nc3 {[%clk 0:03:01]}  Be6 {[%clk 0:02:28]} 15. Na4 {[%clk 0:02:54]}  Qb4 {[%clk 0:02:21]} 16. Qc5 {[%clk 0:02:45]}  Qxc5 {[%clk 0:02:00]} 17. Nxc5 {[%clk 0:02:46]}  Bd5 {[%clk 0:02:00]} 18. Nxb7 {[%clk 0:02:32]}  Rac8 {[%clk 0:01:59]} 19. Rac1 {[%clk 0:02:23]}  Bxg2 {[%clk 0:01:54]} 20. Kxg2 {[%clk 0:02:18]}  Ne4 {[%clk 0:01:47]} 21. e3 {[%clk 0:02:01]}  Nc3 {[%clk 0:01:40]} 22. Rc2 {[%clk 0:02:01]}  Rc7 {[%clk 0:01:38]} 23. Na5 {[%clk 0:02:00]}  Rfc8 {[%clk 0:01:34]} 24. Rfc1 {[%clk 0:02:00]}  f5 {[%clk 0:01:27]} 25. Kf1 {[%clk 0:01:53]}  Kf6 {[%clk 0:01:24]} 26. Ke1 {[%clk 0:01:53]}  e5 {[%clk 0:01:23]} 27. Nc4 {[%clk 0:01:50]}  Ne4 {[%clk 0:01:21]} 28. Rd1 {[%clk 0:01:44]}  Ke6 {[%clk 0:01:18]} 29. f3 {[%clk 0:01:42]}  Ng5 {[%clk 0:01:16]} 30. Kf2 {[%clk 0:01:41]}  Nf7 {[%clk 0:01:16]} 31. Rcd2 {[%clk 0:01:41]}  Rc6 {[%clk 0:01:07]} 32. h4 {[%clk 0:01:18]}  R8c7 {[%clk 0:01:07]} 33. e4 {[%clk 0:01:19]}  Ra6 {[%clk 0:01:04]} 34. exf5+ {[%clk 0:01:16]}  gxf5 {[%clk 0:01:03]} 35. Re1 {[%clk 0:01:16]}  Kf6 {[%clk 0:01:00]} 36. Rde2 {[%clk 0:01:14]}  Re6 {[%clk 0:00:59]} 37. g4 {[%clk 0:01:11]}  fxg4 {[%clk 0:00:57]} 38. fxg4 {[%clk 0:01:12]}  Rd7 {[%clk 0:00:55]} 39. Kg3 {[%clk 0:01:08]}  Rd3+ {[%clk 0:00:54]} 40. Re3 {[%clk 0:01:08]}  Rxe3+ {[%clk 0:00:51]} 41. Rxe3 {[%clk 0:01:08]}  Nd8 {[%clk 0:00:48]} 42. Kf3 {[%clk 0:01:03]}  Nc6 {[%clk 0:00:47]} 43. Ke4 {[%clk 0:01:03]}  Nd4 {[%clk 0:00:42]} 44. g5+ {[%clk 0:00:56]}  Kg6 {[%clk 0:00:37]} 45. Nxe5+ {[%clk 0:00:55]}  Kh5 {[%clk 0:00:36]} 46. Kxd4 {[%clk 0:00:55]} 1-0


[Site "https://www.chess.com"]

[Event "Titled Tuesday Blitz October 19 2021"]
[White "Rozhkov, Viacheslav"]
[Black "Siva Mahadevan"]
[WhiteFideId "4181484"]
[BlackFideId "25043153"]
[WhiteElo "2324"]
[BlackElo "2203"]
[Result "1-0"]
[Round "01"]
[TimeControl "180+1"]
[Date "2021.10.19"]
[WhiteClock "0:00:06"]
[BlackClock "0:00:04"]

1. e4 {[%clk 0:03:00]}  c5 {[%clk 0:02:59]} 2. Nf3 {[%clk 0:02:53]}  Nc6 {[%clk 0:03:00]} 3. d4 {[%clk 0:02:53]}  cxd4 {[%clk 0:03:01]} 4. Nxd4 {[%clk 0:02:53]}  Nf6 {[%clk 0:03:01]} 5. Nc3 {[%clk 0:02:49]}  d6 {[%clk 0:03:02]} 6. Bc4 {[%clk 0:02:48]}  Qb6 {[%clk 0:03:02]} 7. Nb3 {[%clk 0:02:47]}  e6 {[%clk 0:03:03]} 8. Be3 {[%clk 0:02:45]}  Qc7 {[%clk 0:03:03]} 9. Qe2 {[%clk 0:02:46]}  a6 {[%clk 0:03:03]} 10. O-O-O {[%clk 0:02:46]}  Be7 {[%clk 0:03:03]} 11. f3 {[%clk 0:02:44]}  b5 {[%clk 0:03:02]} 12. Bd3 {[%clk 0:02:44]}  Bb7 {[%clk 0:03:03]} 13. g4 {[%clk 0:02:43]}  Ne5 {[%clk 0:03:03]} 14. g5 {[%clk 0:02:38]}  Nfd7 {[%clk 0:03:03]} 15. f4 {[%clk 0:02:37]}  Nc4 {[%clk 0:03:04]} 16. Bxc4 {[%clk 0:02:31]}  bxc4 {[%clk 0:03:04]} 17. Nd2 {[%clk 0:02:26]}  Rc8 {[%clk 0:02:57]} 18. h4 {[%clk 0:02:21]}  Nc5 {[%clk 0:02:06]} 19. h5 {[%clk 0:02:12]}  Qd7 {[%clk 0:01:59]} 20. Bxc5 {[%clk 0:02:05]}  Rxc5 {[%clk 0:02:00]} 21. Nxc4 {[%clk 0:02:02]}  Qc7 {[%clk 0:01:56]} 22. Nd2 {[%clk 0:01:29]}  h6 {[%clk 0:01:54]} 23. Nb3 {[%clk 0:01:24]}  Rc4 {[%clk 0:01:48]} 24. Na5 {[%clk 0:01:13]}  Rxc3 {[%clk 0:01:47]} 25. Nxb7 {[%clk 0:01:12]}  Rc6 {[%clk 0:01:47]} 26. Nxd6+ {[%clk 0:00:34]}  Bxd6 {[%clk 0:01:46]} 27. e5 {[%clk 0:00:34]}  Be7 {[%clk 0:01:46]} 28. gxh6 {[%clk 0:00:32]}  Rxh6 {[%clk 0:01:47]} 29. Rdg1 {[%clk 0:00:26]}  Rh7 {[%clk 0:01:45]} 30. Qd3 {[%clk 0:00:19]}  Rh8 {[%clk 0:01:34]} 31. Rxg7 {[%clk 0:00:18]}  Bf8 {[%clk 0:01:34]} 32. Rgg1 {[%clk 0:00:16]}  Bh6 {[%clk 0:01:34]} 33. Kb1 {[%clk 0:00:15]}  Ke7 {[%clk 0:01:33]} 34. f5 {[%clk 0:00:15]}  Qxe5 {[%clk 0:01:29]} 35. Re1 {[%clk 0:00:13]}  Qd6 {[%clk 0:01:26]} 36. Qf3 {[%clk 0:00:09]}  Rhc8 {[%clk 0:01:13]} 37. fxe6 {[%clk 0:00:09]}  fxe6 {[%clk 0:01:05]} 38. Qe4 {[%clk 0:00:09]}  Rh8 {[%clk 0:00:29]} 39. Rhf1 {[%clk 0:00:10]}  Qc5 {[%clk 0:00:26]} 40. Qg6 {[%clk 0:00:10]}  Qg5 {[%clk 0:00:19]} 41. Rf7+ {[%clk 0:00:10]}  Kd8 {[%clk 0:00:19]} 42. Qe4 {[%clk 0:00:10]}  Qd5 {[%clk 0:00:16]} 43. Qh4+ {[%clk 0:00:10]}  Kc8 {[%clk 0:00:16]} 44. Qe7 {[%clk 0:00:09]}  Qb5 {[%clk 0:00:08]} 45. Qd7+ {[%clk 0:00:09]}  Kb8 {[%clk 0:00:08]} 46. a4 {[%clk 0:00:08]}  Qb6 {[%clk 0:00:06]} 47. a5 {[%clk 0:00:08]}  Qb5 {[%clk 0:00:06]} 48. Rd1 {[%clk 0:00:05]}  Rc5 {[%clk 0:00:02]} 49. Qa7+ {[%clk 0:00:05]}  Kc8 {[%clk 0:00:03]} 50. Qa8+ {[%clk 0:00:05]}  Qb8 {[%clk 0:00:03]} 51. Qxa6+ {[%clk 0:00:06]}  Qb7 {[%clk 0:00:04]} 52. Qxb7# {[%clk 0:00:06]} 1-0


[Site "https://www.chess.com"]